bitfinex/quotes_SOLUSD_20241209
["timestamp","ask_amount","ask_price","bid_price","bid_amount"]
[1733777745786,0.84851303,220.21,220.08,0.6758371]
[1733777745787,35.66009656,220.1,220.08,0.6758371]
[1733777746667,36.50860959,220.1,220.08,0.6758371]
[1733777746898,35.66009656,220.1,220.08,0.6758371]
[1733777747774,0.84851303,220.2,220.09,0.12549]
[1733777747996,35.66009656,220.1,220.08,0.6758371]
[1733777748593,35.66009656,220.12,220.09,24.027864]
[1733777748903,0.84851303,220.21,220.09,24.027864]
[1733777748904,35.66009656,220.14,220.09,24.027864]
[1733777749068,35.66009656,220.1,220.09,23.776884]
[1733777749272,35.66009656,220.1,220.08,0.6758371]
[1733777749672,0.84851303,220.09,220.08,0.6758371]
[1733777749908,0.84851303,220.09,220.08,3.71e-05]
[1733777750704,35.66009656,220.1,220.08,3.71e-05]
[1733777752528,0.97400303,220.09,220.08,3.71e-05]
[1733777752734,36.50860959,220.1,220.08,3.71e-05]
[1733777753034,0.12549,220.09,220.08,3.71e-05]
[1733777753387,5.0,220.07,219.87,35.66009656]
[1733777753616,35.66009656,219.94,219.87,35.66009656]
[1733777753839,35.66009656,220.0,219.91,35.66009656]
[1733777754301,35.66009656,220.02,219.93,35.66009656]
[1733777754504,35.66009656,220.02,219.95,35.66009656]
[1733777754703,35.66009656,220.04,219.96,0.80715948]
[1733777754905,5.0,220.2,219.96,0.80715948]
[1733777754906,35.66009656,220.08,219.99,35.66009656]
[1733777755218,35.66009656,220.08,220.0,23.902374]
[1733777755548,35.66009656,220.17,220.08,0.12549]
[1733777755832,35.66009656,220.13,220.08,0.12549]
[1733777755989,35.66009656,220.15,220.08,0.25098]
[1733777756192,35.66009656,220.17,220.1,0.12549]
[1733777756427,35.66009656,220.19,220.11,35.66009656]
[1733777756606,35.66009656,220.19,220.12,0.80663114]
[1733777756807,35.66009656,220.21,220.14,0.12549]
[1733777757013,35.66009656,220.23,220.16,0.12549]
[1733777757225,35.66009656,220.27,220.19,35.66009656]
[1733777757405,35.66009656,220.28,220.22,0.12549]
[1733777757610,35.66009656,220.26,220.22,0.12549]
[1733777757840,35.66009656,220.23,220.17,23.902374]
[1733777758044,35.66009656,220.2,220.13,23.776884]
[1733777758395,35.66009656,220.22,220.13,35.66009656]
[1733777758596,35.66009656,220.22,220.14,23.776884]
[1733777758797,35.66009656,220.24,220.15,35.66009656]
[1733777759046,35.66009656,220.26,220.19,35.66009656]
[1733777759250,35.66009656,220.26,220.2,23.776884]
[1733777759420,35.66009656,220.28,220.21,0.12549]
[1733777759908,35.66009656,220.28,220.22,23.776884]
[1733777760113,35.66009656,220.3,220.23,0.12549]
[1733777760332,35.66009656,220.24,220.22,23.776884]
[1733777760532,35.66009656,220.24,220.11,35.66009656]
[1733777760814,35.66009656,220.18,220.09,35.66009656]
[1733777761041,0.84851303,220.29,220.04,27.18]
[1733777761212,0.84851303,220.29,220.15,35.66009656]
[1733777761427,35.66009656,220.19,220.1,35.66009656]
[1733777761647,35.66009656,220.19,220.04,27.18]
[1733777761648,35.66009656,220.23,220.14,35.66009656]
[1733777761936,35.66009656,220.23,220.06,5.0]
[1733777761937,35.66009656,220.23,220.16,35.66009656]
[1733777762143,35.66009656,220.31,220.22,35.66009656]
[1733777762341,35.66009656,220.34,220.26,35.66009656]
[1733777762643,35.66009656,220.36,220.28,35.66009656]
[1733777762932,35.66009656,220.32,220.29,23.902374]
[1733777763312,35.66009656,220.3,220.19,0.12549]
[1733777763511,35.66009656,220.25,220.19,0.12549]
[1733777763812,35.66009656,220.23,220.14,36.34092294]
[1733777764016,35.66009656,220.19,220.1,35.66009656]
[1733777764219,35.66009656,220.21,220.12,35.66009656]
[1733777764412,35.66009656,220.23,220.16,35.66009656]
[1733777764638,35.66009656,220.21,220.12,35.66009656]
[1733777764838,35.66009656,220.19,220.12,35.66009656]
[1733777765041,35.66009656,220.27,220.18,35.66009656]
[1733777765251,0.2734,220.23,220.22,35.66009656]
[1733777765423,0.2734,220.23,220.2,35.66009656]
[1733777765754,0.2734,220.23,220.18,35.66009656]
[1733777765911,0.2734,220.23,220.22,23.776884]
[1733777766421,0.2734,220.23,220.22,35.78558656]
[1733777766631,0.2734,220.23,220.22,23.902374]
[1733777766866,35.93349656,220.23,220.22,23.902374]
[1733777767063,35.93349656,220.23,220.15,0.6808491]
[1733777767357,0.84851303,220.22,220.08,36.13880399]
[1733777767541,0.84851303,220.22,220.06,35.45772446]
[1733777767865,0.12549,220.19,220.01,0.68140731]
[1733777768071,5.12549,220.16,219.98,35.45772446]
[1733777768229,0.84851303,220.15,220.0,35.45772446]
[1733777768577,1.12191303,220.23,220.06,35.45772446]
[1733777768863,0.2734,220.23,220.17,35.45772446]
[1733777769062,0.2734,220.23,220.12,13.62]
[1733777769063,0.2734,220.23,220.21,35.45772446]
[1733777769574,0.2734,220.23,220.22,23.902374]
[1733777769932,0.2734,220.23,220.19,0.12549]
[1733777770133,0.2734,220.23,220.2,23.776884]
[1733777770333,0.2734,220.23,220.21,0.12549]
[1733777770836,0.2734,220.23,220.21,35.58321446]
[1733777771069,0.08091884,220.28,220.23,0.12549]
[1733777771367,0.08091884,220.28,220.22,23.776884]
[1733777771656,0.08091884,220.28,220.21,35.45772446]
[1733777771657,0.08091884,220.28,220.2,0.12549]
[1733777771855,0.08091884,220.28,220.03,3.1891]
[1733777771856,0.08091884,220.28,220.11,35.45772446]
[1733777772035,10.0,220.25,220.07,35.45772446]
[1733777772234,0.84851303,220.24,220.1,35.45772446]
[1733777772438,0.92943187,220.28,220.12,35.45772446]
[1733777772637,0.08091884,220.28,220.17,35.45772446]
[1733777772846,0.08091884,220.28,220.19,35.45772446]
[1733777773048,0.08091884,220.28,220.2,0.12549]
[1733777773337,0.08091884,220.28,220.12,18.63]
[1733777773338,0.08091884,220.28,220.17,35.45772446]
[1733777773552,0.08091884,220.28,220.19,23.902374]
[1733777774334,0.08091884,220.28,220.19,0.12549]
[1733777775240,0.08091884,220.28,220.2,0.25098]
[1733777775440,0.08091884,220.28,220.21,0.6809228]
[1733777775641,0.08091884,220.28,220.2,0.12549]
[1733777776461,0.08091884,220.28,220.19,0.25098]
[1733777776851,0.08091884,220.28,220.15,35.45772446]
[1733777777048,0.08091884,220.28,220.16,0.68105586]
[1733777777246,0.08091884,220.28,220.2,0.12549]
[1733777777865,0.08091884,220.28,220.22,0.12549]
[1733777778095,0.08091884,220.28,220.22,24.027864]
[1733777778362,0.08091884,220.28,220.27,35.70870446]
[1733777778567,0.84851303,220.43,220.29,0.12549]
[1733777778866,3.3099,220.55,220.37,0.25098]
[1733777779070,5.0,220.52,220.39,0.12549]
[1733777779275,5.84851303,220.51,220.3,35.45772446]
[1733777779484,5.0,220.5,220.31,0.80603061]
[1733777779654,5.84851303,220.49,220.31,0.80603061]
[1733777779985,5.0,220.39,220.18,35.45772446]
[1733777780144,5.0,220.34,220.14,35.45772446]
[1733777780482,5.0,220.29,220.08,35.45772446]
[1733777780651,5.0,220.25,220.09,0.68110709]
[1733777780979,5.0,220.22,220.0,0.68120742]
[1733777781138,6.038,220.16,219.95,36.13918232]
[1733777781342,5.84851303,220.15,219.95,36.13918232]
[1733777781543,5.84851303,220.15,219.95,0.68145786]
[1733777782106,5.0,220.09,219.95,0.68145786]
[1733777782381,5.0,220.09,219.85,35.45772446]
[1733777782382,5.0,220.06,219.85,35.45772446]
[1733777782588,0.84851303,220.05,219.89,35.45772446]
[1733777782743,0.84851303,220.08,219.9,0.68178278]
[1733777783386,5.0,220.04,219.82,0.68176348]
[1733777783675,0.84851303,220.08,219.82,0.68176348]
[1733777783676,0.84851303,220.03,219.86,35.45772446]
[1733777783883,0.84851303,220.07,219.87,0.68191435]
[1733777784477,0.84851303,220.07,219.9,35.45772446]
[1733777784780,3.3099,220.09,219.92,35.58321446]
[1733777784996,11.038,220.16,219.87,5.0]
[1733777784997,0.84851303,220.15,219.99,0.12549]
[1733777785151,0.84851303,220.15,219.99,24.027864]
[1733777785700,10.0,220.14,219.99,0.12549]
[1733777785842,10.0,220.14,219.81,5.6758371]
[1733777785843,5.0,220.1,219.88,35.45772446]
[1733777786176,6.038,220.16,219.91,0.12549]
[1733777786177,0.84851303,220.09,219.91,0.12549]
[1733777786398,5.0,220.08,219.86,35.45772446]
[1733777786677,5.0,220.05,219.82,36.13966457]
[1733777786885,9.7156,219.98,219.81,0.6758371]
[1733777787041,0.84851303,219.97,219.81,0.6758371]
[1733777787242,5.0,219.96,219.81,3.71e-05]
[1733777787446,5.0,219.9,219.67,35.45772446]
[1733777787677,9.7156,219.98,219.79,1.42e-05]
[1733777787678,5.0,219.88,219.79,1.42e-05]
[1733777787884,5.0,219.86,219.62,35.45772446]
[1733777788096,5.0,219.93,219.64,35.45772446]
[1733777788097,0.84851303,219.85,219.64,35.45772446]
[1733777788278,10.0,219.89,219.65,0.68247579]
[1733777788451,5.0,219.84,219.58,0.68252217]
[1733777788654,5.0,219.8,219.58,0.68252217]
[1733777788969,3.1835,219.81,219.57,0.5501311]
[1733777788970,5.0,219.74,219.57,0.5501311]
[1733777789179,0.84851303,219.73,219.57,0.5501311]
[1733777789363,5.84851303,219.77,219.57,0.5501311]
[1733777789569,5.0,219.75,219.57,0.5501311]
[1733777789779,3.1835,219.81,219.57,0.5501311]
[1733777789780,5.0,219.69,219.57,0.5501311]
[1733777789988,0.84851303,219.68,219.57,0.5501311]
[1733777790309,5.84851303,219.73,219.57,0.5501311]
[1733777790468,0.84851303,219.73,219.57,0.5501311]
[1733777790865,5.0,219.79,219.58,0.12549]
[1733777791072,0.84851303,219.78,219.57,0.5501311]
[1733777791386,5.84851303,219.78,219.57,0.5501311]
[1733777791605,5.0,219.71,219.57,0.5501311]
[1733777791760,0.12549,219.66,219.55,17.19420307]
[1733777791960,0.84851303,219.66,219.55,17.19420307]
[1733777792883,0.84851303,219.69,219.55,17.19420307]
[1733777793284,0.84851303,219.72,219.56,0.12549]
[1733777793467,0.84851303,219.72,219.55,17.19420307]
[1733777793989,5.12549,219.71,219.55,17.19420307]
[1733777794191,5.84851303,219.7,219.55,17.19420307]
[1733777794890,5.84851303,219.7,219.56,0.12549]
[1733777794891,0.84851303,219.7,219.56,0.12549]
[1733777795089,0.84851303,219.72,219.56,0.12549]
[1733777795279,0.84851303,219.72,219.55,17.19420307]
[1733777795594,0.84851303,219.72,219.56,0.12549]
[1733777795893,0.84851303,219.72,219.56,23.776884]
[1733777796098,0.84851303,219.72,219.58,23.776884]
[1733777796264,0.84851303,219.8,219.61,0.12549]
[1733777796595,0.84851303,219.8,219.63,0.25098]
[1733777796797,0.84851303,219.8,219.65,24.027864]
[1733777796996,0.84851303,219.82,219.67,24.027864]
[1733777797196,6.4741,219.83,219.67,23.902374]
[1733777797197,0.84851303,219.8,219.67,23.902374]
[1733777797515,0.84851303,219.82,219.7,0.25098]
[1733777797689,6.4741,219.83,219.7,0.25098]
[1733777797882,0.84851303,219.91,219.72,24.027864]
[1733777798077,0.84851303,219.91,219.77,35.45772446]
[1733777798414,0.84851303,219.91,219.67,40.45772446]
[1733777798415,0.84851303,219.91,219.8,0.12549]
[1733777798770,0.84851303,219.99,219.82,0.12549]
[1733777798975,0.84851303,220.02,219.84,24.027864]
[1733777799206,0.84851303,220.02,219.86,24.027864]
[1733777799401,0.84851303,220.02,219.88,24.027864]
[1733777799573,0.84851303,220.02,219.88,0.12549]
[1733777799776,0.84851303,220.02,219.72,27.18]
[1733777799777,5.0,219.98,219.72,35.45772446]
[1733777799998,0.84851303,219.97,219.72,23.902374]
[1733777800337,0.12549,219.95,219.73,0.68232316]
[1733777800504,5.84851303,219.95,219.73,0.68232316]
[1733777800804,0.84851303,219.95,219.74,0.12549]
[1733777801273,0.84851303,219.95,219.65,5.0]
[1733777801274,0.84851303,219.95,219.73,0.12549]
[1733777801479,0.12549,219.94,219.74,23.776884]
[1733777801679,0.97400303,219.94,219.74,23.776884]
[1733777801884,0.84851303,219.94,219.74,23.776884]
[1733777802288,0.12549,219.93,219.74,23.776884]
[1733777802483,0.84851303,219.92,219.74,23.776884]
[1733777802684,0.84851303,219.92,219.75,0.25098]
[1733777802885,0.84851303,219.96,219.77,0.12549]
[1733777803086,0.84851303,219.96,219.79,0.25098]
[1733777803290,0.84851303,220.02,219.85,0.12549]
[1733777803494,0.84851303,220.02,219.87,0.12549]
[1733777803675,0.84851303,220.02,219.89,0.12549]
[1733777803881,6.5507,220.03,219.89,0.80735965]
[1733777804080,6.5507,220.03,219.91,0.12549]
[1733777805008,7.89564413,220.12,219.93,0.12549]
[1733777805179,7.89564413,220.12,219.95,0.12549]
[1733777805384,7.89564413,220.12,219.97,0.12549]
[1733777805608,7.89564413,220.12,219.99,0.12549]
[1733777805819,7.89564413,220.12,219.98,23.902374]
[1733777805982,7.0471311,220.12,220.0,23.902374]
[1733777806183,0.84851303,220.11,220.0,0.12549]
[1733777806803,7.0471311,220.12,220.0,0.80711487]
[1733777807010,0.5501311,220.12,220.02,0.12549]
[1733777807306,0.5501311,220.12,220.02,23.902374]
[1733777807877,0.5501311,220.12,220.04,23.902374]
[1733777808179,0.5501311,220.12,220.07,24.027864]
[1733777808390,0.5501311,220.12,220.09,23.902374]
[1733777808678,0.5501311,220.12,220.11,0.12549]
[1733777808900,0.5501311,220.12,220.11,24.027864]
[1733777809213,0.5501311,220.12,220.11,23.902374]
[1733777809390,0.5501311,220.12,220.11,24.027864]
[1733777809589,0.5501311,220.12,220.11,23.902374]
[1733777809789,0.5501311,220.12,220.11,24.70903321]
[1733777812215,0.5501311,220.12,220.11,24.45805321]
[1733777812696,0.5501311,220.12,220.11,24.58354321]
[1733777813402,0.5501311,220.12,220.11,24.70903321]
[1733777813599,0.4247311,220.12,220.11,24.70903321]
[1733777813804,0.4247311,220.12,220.11,29.70903321]
[1733777813990,6.1191,220.3,220.15,0.12549]
[1733777814192,0.5501311,220.34,220.21,35.45772446]
[1733777814502,0.5501311,220.34,220.25,0.12549]
[1733777814699,0.5501311,220.34,220.25,0.80609188]
[1733777815016,0.5501311,220.34,220.29,0.12549]
[1733777815215,0.84851303,220.47,220.27,0.12549]
[1733777815216,0.84851303,220.47,220.3,0.6806058]
[1733777815421,0.7116147,220.45,220.3,0.6806058]
[1733777815801,0.7116147,220.45,220.31,0.12549]
[1733777816204,0.7116147,220.45,220.31,23.902374]
[1733777816521,0.7116147,220.45,220.31,0.12549]
[1733777816717,0.7116147,220.45,220.31,23.902374]
[1733777817101,0.7116147,220.45,220.33,23.902374]
[1733777817819,0.7116147,220.45,220.36,0.12549]
[1733777818022,0.7116147,220.45,220.38,0.12549]
[1733777818234,0.7116147,220.45,220.4,0.25098]
[1733777818442,0.7116147,220.45,220.42,23.902374]
[1733777818598,0.7116147,220.45,220.43,0.12549]
[1733777818947,0.7116147,220.45,220.4,0.68009434]
[1733777819115,0.7116147,220.45,220.42,0.68009434]
[1733777819308,0.7116147,220.45,220.43,23.902374]
[1733777819512,0.7116147,220.45,220.39,35.45772446]
[1733777819711,0.7116147,220.45,220.36,0.68015353]
[1733777819712,0.7116147,220.45,220.38,0.12549]
[1733777820016,0.7116147,220.45,220.35,35.45772446]
[1733777820357,0.7116147,220.45,220.4,0.12549]
[1733777820534,0.7116147,220.45,220.4,0.68017164]
[1733777820713,0.7116147,220.45,220.36,0.68034475]
[1733777821151,0.7116147,220.45,220.27,36.13814013]
[1733777821444,0.7116147,220.45,220.27,0.68041567]
[1733777821617,0.84851303,220.44,220.27,0.68041567]
[1733777822237,5.0,220.41,220.23,0.68061716]
[1733777822408,0.12549,220.43,220.16,35.45772446]
[1733777822409,0.12549,220.39,220.16,35.45772446]
[1733777822744,0.12549,220.37,220.17,0.6808812]
[1733777822905,0.84851303,220.38,220.17,0.6808812]
[1733777823228,0.84851303,220.38,220.2,35.45772446]
[1733777823415,0.84851303,220.38,220.2,0.68081611]
[1733777823619,0.12549,220.37,220.2,0.68081611]
[1733777824137,0.12549,220.35,220.14,35.45772446]
[1733777824328,0.12549,220.35,220.19,0.68089636]
[1733777824561,0.12549,220.33,220.1,36.13867832]
[1733777824851,0.12549,220.31,220.1,36.13867832]
[1733777825159,0.12549,220.29,220.1,0.68095386]
[1733777825312,0.25098,220.27,220.06,35.45772446]
[1733777825507,0.25098,220.27,219.95,5.0]
[1733777825508,0.12549,220.25,220.04,35.45772446]
[1733777825707,0.84851303,220.24,220.06,35.45772446]
[1733777825910,0.84851303,220.24,220.07,0.68119023]
[1733777826106,0.84851303,220.24,220.04,35.45772446]
[1733777826310,0.12549,220.22,220.05,0.68125569]
[1733777826633,0.84851303,220.22,220.05,0.68125569]
[1733777826830,6.3982,220.26,220.08,35.45772446]
[1733777827071,0.84851303,220.34,220.16,0.12549]
[1733777827230,0.84851303,220.34,220.17,35.45772446]
[1733777827433,6.3982,220.35,220.2,0.12549]
[1733777827650,6.3982,220.35,220.2,0.68077587]
[1733777827953,6.3982,220.35,220.21,23.902374]
[1733777828151,6.3982,220.35,220.11,40.45772446]
[1733777828152,0.84851303,220.34,220.16,23.902374]
[1733777828333,0.84851303,220.34,220.18,23.902374]
[1733777828635,6.3982,220.35,220.21,0.12549]
[1733777828834,6.3982,220.35,220.22,0.12549]
[1733777829052,6.3982,220.35,220.21,0.68076089]
[1733777829053,0.84851303,220.34,220.21,0.68076089]
[1733777829535,6.3982,220.35,220.21,0.68076089]
[1733777829737,6.3982,220.35,220.23,0.12549]
[1733777829944,6.3982,220.35,220.25,0.12549]
[1733777830136,6.3982,220.35,220.25,0.68063527]
[1733777830539,6.3982,220.35,220.25,0.12549]
[1733777830957,6.3982,220.35,220.2,35.45772446]
[1733777831177,0.12549,220.33,220.12,35.45772446]
[1733777831471,0.12549,220.31,220.08,35.45772446]
[1733777831637,11.3982,220.35,220.08,35.45772446]
[1733777831638,0.12549,220.29,220.08,35.45772446]
[1733777831839,0.85141564,220.33,220.11,0.12549]
[1733777832028,0.25098,220.28,220.06,35.45772446]
[1733777832240,0.25098,220.28,220.08,35.45772446]
[1733777832241,0.85156585,220.27,220.08,35.45772446]
[1733777832537,0.85147875,220.3,220.11,0.12549]
[1733777832746,0.85132969,220.34,220.13,0.12549]
[1733777832932,0.85132969,220.34,220.18,0.12549]
[1733777833133,6.3982,220.35,220.21,35.45772446]
[1733777833339,6.3982,220.35,220.23,35.45772446]
[1733777833546,6.3982,220.35,220.26,0.12549]
[1733777833736,6.3982,220.35,220.21,23.902374]
[1733777833937,0.85100337,220.34,220.09,23.776884]
[1733777834146,0.85100337,220.34,220.08,35.45772446]
[1733777834147,5.85100337,220.34,220.08,35.45772446]
[1733777834354,5.0,220.33,220.05,35.45772446]
[1733777834551,0.85159954,220.32,220.1,35.45772446]
[1733777834754,0.85159954,220.32,220.14,35.45772446]
[1733777834938,6.3982,220.35,220.22,35.45772446]
[1733777835150,6.3982,220.35,220.26,35.45772446]
[1733777835554,0.7116147,220.45,220.17,5.0]
[1733777835555,7.62545016,220.45,220.28,35.45772446]
[1733777835746,6.7747147,220.45,220.3,35.45772446]
[1733777835945,6.7747147,220.45,220.32,35.45772446]
[1733777836163,6.7747147,220.45,220.33,23.776884]
[1733777836371,0.12549,220.44,220.31,23.776884]
[1733777836662,0.7116147,220.45,220.34,35.45772446]
[1733777836882,0.7116147,220.45,220.35,23.776884]
[1733777837560,0.7116147,220.45,220.37,23.776884]
[1733777837888,0.7116147,220.45,220.39,23.776884]
[1733777838366,0.7116147,220.45,220.4,35.45772446]
[1733777838554,0.7116147,220.45,220.41,23.776884]
[1733777838958,0.7116147,220.45,220.39,23.776884]
[1733777839566,0.7116147,220.45,220.41,23.776884]
[1733777839753,0.7116147,220.45,220.39,23.776884]
[1733777840266,0.7116147,220.45,220.37,23.776884]
[1733777840640,0.7116147,220.45,220.39,23.776884]
[1733777841142,0.7116147,220.45,220.41,23.776884]
[1733777842161,0.7116147,220.45,220.42,35.45772446]
[1733777842368,0.7116147,220.45,220.44,59.23460846]
[1733777842541,3.1184,220.61,220.45,23.902374]
[1733777842745,6.1809,220.63,220.52,35.45772446]
[1733777843142,6.1809,220.63,220.48,35.45772446]
[1733777843392,0.84980911,220.62,220.45,59.23460846]
[1733777843684,0.12549,220.61,220.41,35.45772446]
[1733777843856,5.12549,220.61,220.35,35.45772446]
[1733777844059,0.12549,220.59,220.33,35.45772446]
[1733777844364,5.0,220.56,220.29,35.45772446]
[1733777844675,6.1809,220.48,220.25,49.08772446]
[1733777844879,0.25098,220.45,220.21,35.45772446]
[1733777845047,0.25098,220.45,220.11,40.45772446]
[1733777845048,0.25098,220.4,220.17,35.45772446]
[1733777845243,0.12549,220.38,220.15,35.45772446]
[1733777845468,0.97662259,220.38,220.17,35.45772446]
[1733777845863,0.97662259,220.38,220.07,5.0]
[1733777845864,0.12549,220.35,220.12,35.45772446]
[1733777846049,0.25098,220.33,220.07,35.45772446]
[1733777846249,0.85134034,220.32,220.13,35.45772446]
[1733777846453,0.85114259,220.33,220.13,35.45772446]
[1733777846660,0.25098,220.32,220.11,35.45772446]
[1733777846973,0.12549,220.25,220.01,35.45772446]
[1733777847144,0.12549,220.24,220.01,35.45772446]
[1733777847480,0.97716746,220.25,220.07,35.45772446]
[1733777847771,0.25098,220.3,220.05,35.45772446]
[1733777847954,0.25098,220.25,219.99,53.63689946]
[1733777848272,0.12549,220.23,220.01,35.45772446]
[1733777848471,0.12549,220.21,219.99,35.45772446]
[1733777848775,0.12549,220.17,219.99,35.45772446]
[1733777848972,0.12549,220.17,219.9,11.3688]
[1733777848973,0.12549,220.16,219.97,35.45772446]
[1733777849201,0.25098,220.14,219.95,35.45772446]
[1733777849683,0.12549,220.14,219.97,35.45772446]
[1733777849873,3.0558,220.16,219.99,35.45772446]
[1733777850078,3.0558,220.16,220.03,35.45772446]
[1733777850275,3.0558,220.16,219.93,75.0]
[1733777850276,3.0558,220.16,220.05,35.45772446]
[1733777850466,3.0558,220.16,220.01,35.45772446]
[1733777851174,3.0558,220.16,220.04,23.902374]
[1733777851486,3.0558,220.16,220.06,23.776884]
[1733777851653,6.1809,220.18,220.06,23.776884]
[1733777851858,6.1809,220.18,220.07,35.45772446]
[1733777852178,3.0558,220.26,220.14,23.776884]
[1733777852380,3.0558,220.26,220.16,23.776884]
[1733777852584,0.85118823,220.25,220.16,23.776884]
[1733777852767,0.12549,220.24,220.07,35.45772446]
[1733777852966,0.12549,220.22,220.03,0.12549]
[1733777853800,0.85161975,220.25,220.04,35.4765633]
[1733777854000,0.25098,220.24,220.04,35.4765633]
[1733777854204,0.25098,220.24,220.06,35.4765633]
[1733777854695,3.90729289,220.26,220.08,35.4765633]
[1733777854916,0.85134246,220.25,220.06,35.4765633]
[1733777855204,3.90732998,220.26,220.08,0.12549]
[1733777855559,3.90732998,220.26,220.08,35.6020533]
[1733777855755,3.90732998,220.26,220.09,23.776884]
[1733777856258,3.90718687,220.26,220.11,23.776884]
[1733777856455,3.90718687,220.26,220.03,17.5428]
[1733777856456,3.0558,220.26,220.09,23.776884]
[1733777856655,0.85133728,220.25,220.09,23.776884]
[1733777856892,3.0558,220.26,220.09,23.776884]
[1733777857179,3.0558,220.26,220.13,23.776884]
[1733777857503,6.1809,220.27,220.19,23.776884]
[1733777857657,6.262,220.36,220.21,23.776884]
[1733777857862,0.85093072,220.35,220.21,23.776884]
[1733777858075,0.85093072,220.35,220.04,70.0]
[1733777858076,0.85093072,220.35,220.14,35.4765633]
[1733777858278,35.44507449,220.21,220.15,23.776884]
[1733777858479,35.44507449,220.21,220.13,23.776884]
[1733777858886,35.44507449,220.23,220.15,23.776884]
[1733777859088,35.44507449,220.25,220.17,23.776884]
[1733777859278,35.44507449,220.27,220.21,23.776884]
[1733777859477,35.44507449,220.29,220.21,23.776884]
[1733777860274,35.44507449,220.25,220.19,23.776884]
[1733777860471,0.85111517,220.32,220.16,35.44507449]
[1733777860472,35.44507449,220.23,220.16,35.44507449]
[1733777860664,35.44507449,220.23,220.15,23.776884]
[1733777861081,0.85111517,220.32,220.18,35.44507449]
[1733777861082,35.44507449,220.25,220.18,35.44507449]
[1733777861393,35.44507449,220.27,220.19,23.776884]
[1733777861581,35.44507449,220.27,220.21,23.776884]
[1733777861792,35.44507449,220.29,220.21,23.776884]
[1733777862093,35.44507449,220.35,220.26,35.44507449]
[1733777862313,35.44507449,220.35,220.28,35.44507449]
[1733777862474,35.44507449,220.35,220.27,23.776884]
[1733777862475,35.44507449,220.31,220.27,23.776884]
[1733777862686,35.44507449,220.31,220.25,23.776884]
[1733777862980,35.44507449,220.31,220.23,23.776884]
[1733777863208,35.44507449,220.29,220.21,23.776884]
[1733777864010,35.44507449,220.29,220.2,35.44507449]
[1733777864713,35.44507449,220.31,220.22,35.44507449]
[1733777864887,35.44507449,220.31,220.24,35.44507449]
[1733777865085,35.44507449,220.33,220.25,23.776884]
[1733777865426,35.44507449,220.31,220.25,23.776884]
[1733777865583,35.44507449,220.29,220.2,35.44507449]
[1733777865786,35.44507449,220.27,220.18,35.44507449]
[1733777866890,35.44507449,220.29,220.21,0.12549]
[1733777867193,6.262,220.36,220.14,11.356]
[1733777867194,35.44507449,220.31,220.23,23.776884]
[1733777867392,35.44507449,220.33,220.25,23.776884]
[1733777868205,35.44507449,220.31,220.22,35.44507449]
[1733777868405,35.44507449,220.33,220.25,23.776884]
[1733777868993,35.44507449,220.31,220.25,23.776884]
[1733777869208,35.44507449,220.29,220.2,35.44507449]
[1733777869411,35.44507449,220.29,220.21,0.12549]
[1733777869927,35.42724345,220.25,220.13,11.3566]
[1733777870095,35.42724345,220.25,220.17,35.42724345]
[1733777871115,35.42724345,220.23,220.15,35.42724345]
[1733777871316,35.42724345,220.21,220.13,35.42724345]
[1733777871608,35.42724345,220.21,220.09,11.3589]
[1733777871609,35.42724345,220.21,220.12,0.12549]
[1733777871812,0.85134276,220.2,220.04,42.42307203]
[1733777872028,35.42724345,220.11,220.04,6.99582858]
[1733777872231,35.42724345,220.05,219.99,6.99582858]
[1733777872408,35.42724345,220.01,219.93,42.42307203]
[1733777872744,35.42724345,220.01,219.93,35.42724345]
[1733777872904,35.42724345,219.99,219.89,35.42724345]
[1733777873300,35.42724345,219.95,219.85,35.42724345]
[1733777873703,35.42724345,219.95,219.86,0.12549]
[1733777874206,35.42724345,219.93,219.85,35.42724345]
[1733777874516,35.42724345,219.93,219.84,0.12549]
[1733777874697,35.42724345,219.89,219.81,35.42724345]
[1733777875096,35.42724345,219.89,219.79,35.42724345]
[1733777875297,35.42724345,219.93,219.84,0.12549]
[1733777875721,35.42724345,219.93,219.85,35.42724345]
[1733777876101,35.42724345,219.95,219.88,0.12549]
[1733777876301,35.42724345,219.97,219.9,24.027864]
[1733777876501,6.1781,220.0,219.94,23.776884]
[1733777876711,35.42724345,220.02,219.94,23.776884]
[1733777876924,35.42724345,220.02,219.95,0.12549]
[1733777877114,35.42724345,220.04,219.96,23.776884]
[1733777877646,0.85218644,220.1,220.02,0.12549]
[1733777877647,35.42724345,220.1,220.02,0.12549]